bitfinex/quotes_ETHUSD_20251006
["timestamp","ask_amount","ask_price","bid_price","bid_amount"]
[1759784382035,2.56034665,4689.9,4689.8,2.401]
[1759784382230,3.10421777,4689.9,4689.8,2.401]
[1759784382610,0.97197112,4689.9,4689.8,2.401]
[1759784382855,3.10421642,4689.9,4689.5,0.1064]
[1759784383010,3.10421642,4689.9,4689.6,2.401]
[1759784383206,2.23850585,4690.2,4689.6,2.401]
[1759784383207,0.4281,4689.8,4689.6,2.401]
[1759784383422,0.4281,4689.7,4689.6,2.401]
[1759784386370,0.4281,4689.7,4689.5,0.1064]
[1759784386555,0.4281,4689.7,4689.6,2.401]
[1759784387332,2.56043962,4689.7,4689.6,2.401]
[1759784387531,3.10433485,4689.7,4689.6,2.401]
[1759784388351,3.10433485,4689.7,4689.2,0.1064]
[1759784388552,2.1323876,4689.6,4689.3,2.401]
[1759784388752,2.6762402,4689.7,4689.3,2.401]
[1759784389060,0.4281,4689.6,4689.3,2.401]
[1759784389268,0.4281,4689.5,4689.3,2.401]
[1759784389567,0.4281,4689.4,4689.3,2.401]
[1759784392569,2.13245026,4689.5,4689.3,2.401]
[1759784392768,0.4281,4689.4,4689.0,2.401]
[1759784393061,2.13257722,4689.2,4689.0,2.401]
[1759784393266,0.4281,4689.1,4688.8,0.001]
[1759784393434,0.4281,4689.1,4689.0,2.401]
[1759784395259,0.6336,4689.3,4689.0,2.401]
[1759784395590,2.2390054,4689.1,4689.0,2.401]
[1759784396007,2.6671054,4689.1,4689.0,2.401]
[1759784398294,2.13269636,4688.9,4688.8,0.001]
[1759784398464,2.13269636,4688.9,4688.8,2.402]
[1759784398665,2.56079636,4688.9,4688.8,2.402]
[1759784399387,0.1064,4689.1,4688.8,2.402]
[1759784399759,0.6336,4688.9,4688.8,0.001]
[1759784400162,3.19439636,4688.9,4688.8,0.001]
[1759784400463,0.6336,4688.9,4688.8,0.001]
[1759784400660,0.64007032,4689.6,4688.8,0.452]
[1759784401060,0.012,4690.9,4689.5,2.13238115]
[1759784401061,0.1064,4690.3,4689.5,2.13238115]
[1759784401281,0.1064,4690.3,4689.8,2.13227948]
[1759784401499,2.14383025,4690.9,4690.0,2.13217438]
[1759784401702,2.14383025,4690.9,4690.1,2.402]
[1759784401703,0.1064,4690.6,4690.1,2.402]
[1759784401877,0.1064,4690.6,4690.1,2.853]
[1759784402089,2.23836399,4690.6,4690.1,2.402]
[1759784402293,2.66646399,4690.6,4690.1,2.402]
[1759784402610,2.13197167,4690.5,4690.1,2.402]
[1759784402819,0.50557006,4690.4,4690.1,2.402]
[1759784404083,0.1064,4690.6,4690.2,0.4736]
[1759784404411,0.1064,4690.6,4690.1,2.402]
[1759784404777,2.56997648,4690.5,4690.1,2.402]
[1759784404982,0.6336,4690.4,4689.9,0.1064]
[1759784405180,2.13230175,4689.8,4689.6,2.402]
[1759784405386,2.57034243,4689.7,4689.4,2.402]
[1759784405590,2.13234243,4689.7,4689.2,0.1064]
[1759784405791,0.438,4689.6,4689.3,2.402]
[1759784406389,2.13234243,4689.7,4689.3,2.402]
[1759784407026,0.1064,4689.9,4689.3,2.402]
[1759784407893,2.23865173,4689.9,4689.3,2.402]
[1759784408523,0.1064,4689.9,4689.3,2.402]
[1759784408722,0.1064,4689.9,4689.3,2.8756]
[1759784408894,0.39362036,4689.9,4689.3,2.8756]
[1759784409530,0.39362036,4689.9,4689.4,2.13246897]
[1759784409724,0.1064,4689.9,4689.3,4.534502]
[1759784410026,0.6336,4690.5,4689.7,2.13229223]
[1759784410202,0.1064,4690.4,4689.8,2.8756]
[1759784410408,0.1064,4690.4,4689.8,5.00788123]
[1759784411440,0.1064,4690.4,4689.8,2.8756]
[1759784413024,0.002,4690.5,4689.9,0.4736]
[1759784413234,0.002,4690.5,4689.9,0.7718]
[1759784413406,0.002,4690.5,4690.4,2.23841432]
[1759784413601,0.002,4690.5,4690.4,4.53401432]
[1759784413800,0.002,4690.5,4690.4,5.00761432]
[1759784420733,0.002,4690.5,4690.4,5.09290243]
[1759784420918,0.002,4690.5,4690.4,5.59588056]
[1759784423536,0.002,4690.5,4690.4,5.70228056]
[1759784424739,0.002,4690.5,4690.4,8.10228056]
[1759784424914,0.002,4690.5,4690.4,5.49666624]
[1759784425237,0.002,4690.5,4690.4,5.61499245]
[1759784425440,0.002,4690.5,4690.4,7.54339245]
[1759784427015,0.002,4690.5,4690.4,8.01699245]
[1759784427228,0.002,4690.5,4690.4,5.61499245]
[1759784427433,0.002,4690.5,4690.4,8.01699245]
[1759784428717,0.002,4690.5,4690.4,5.61499245]
[1759784429052,0.002,4690.5,4690.4,8.01599245]
[1759784430943,0.002,4690.5,4690.4,7.54239245]
[1759784431456,0.33561203,4690.5,4690.4,7.03941432]
[1759784431659,0.33561203,4690.5,4690.4,7.04041432]
[1759784432735,0.77361203,4690.5,4690.4,7.04041432]
[1759784433057,0.44,4690.5,4690.4,7.04041432]
[1759784434544,0.002,4690.5,4690.4,7.04041432]
[1759784436041,0.002,4690.5,4690.4,7.48461432]
[1759784437043,0.002,4690.5,4690.4,7.04041432]
[1759784437251,0.002,4690.5,4690.4,7.48461432]
[1759784438162,0.002,4690.5,4690.4,7.04041432]
[1759784439258,0.002,4690.5,4690.4,8.18577629]
[1759784440062,0.002,4690.5,4690.4,8.62997629]
[1759784441165,0.002,4690.5,4690.4,7.48461432]
[1759784444952,0.33560334,4690.5,4690.4,7.48461432]
[1759784445142,0.002,4690.5,4690.4,7.48461432]
[1759784446185,0.002,4690.5,4690.4,7.04041432]
[1759784446381,0.002,4690.5,4690.4,7.48461432]
[1759784446540,0.002,4690.5,4690.4,7.04041432]
[1759784449375,0.002,4690.5,4690.4,7.03941432]
[1759784452073,0.002,4690.5,4690.4,4.63841432]
[1759784452278,0.002,4690.5,4690.4,7.03941432]
[1759784452574,0.33561616,4690.5,4690.4,7.03941432]
[1759784453874,0.002,4690.5,4690.4,7.03941432]
[1759784454278,0.002,4690.5,4690.4,7.48811432]
[1759784455971,0.002,4690.5,4690.4,7.93231432]
[1759784456966,0.002,4690.5,4690.4,7.48361432]
[1759784457271,0.002,4690.5,4690.4,7.56890844]
[1759784459780,0.012,4690.9,4690.8,2.13183252]
[1759784459953,0.012,4690.9,4690.8,4.63923252]
[1759784460353,0.012,4690.9,4690.8,5.08343252]
[1759784460573,0.19995795,4691.5,4690.8,5.2452]
[1759784460887,0.002,4691.6,4691.5,2.13151444]
[1759784461053,0.002,4691.6,4691.5,4.53251444]
[1759784461984,0.002,4691.6,4691.5,6.93251444]
[1759784462187,0.002,4691.6,4691.5,8.08088717]
[1759784463188,0.002,4691.6,4691.5,6.93251444]
[1759784464787,0.4519,4691.6,4691.5,6.93251444]
[1759784464996,0.002,4691.6,4691.5,6.93251444]
[1759784469573,0.4519,4691.6,4691.5,2.4]
[1759784469772,0.4519,4691.6,4691.5,4.8]
[1759784470704,0.4519,4691.6,4691.5,4.9064]
[1759784471200,0.4519,4691.6,4691.5,7.03791444]
[1759784471704,0.4519,4691.6,4691.5,0.1064]
[1759784471905,2.13151444,4691.5,4691.0,0.1064]
[1759784472081,0.4499,4691.4,4691.1,2.4]
[1759784472483,2.23987105,4691.6,4691.1,2.4]
[1759784472813,0.4499,4691.5,4691.1,2.4]
[1759784473001,2.13151453,4691.5,4691.1,2.4]
[1759784473190,0.4499,4691.4,4691.1,2.4]
[1759784473577,2.2398804,4691.6,4691.1,2.4]
[1759784473782,0.4499,4691.5,4691.1,2.4]
[1759784473986,0.4499,4691.4,4691.1,2.4]
[1759784474294,0.4499,4691.4,4691.0,0.1064]
[1759784474484,2.2398804,4691.6,4691.1,2.4]
[1759784474687,0.4499,4691.3,4691.1,2.4]
[1759784474885,0.4499,4691.2,4691.1,2.4]
[1759784478982,0.4499,4691.2,4691.1,2.401]
[1759784479711,0.4499,4691.5,4691.1,2.401]
[1759784479911,0.4499,4691.4,4691.1,2.401]
[1759784480115,2.23987599,4691.6,4691.1,2.401]
[1759784480290,0.4499,4691.3,4691.1,2.401]
[1759784481219,0.1084,4691.6,4691.1,2.401]
[1759784482019,0.5583,4691.6,4691.1,2.401]
[1759784482518,0.4499,4691.5,4691.1,2.401]
[1759784482907,0.4499,4691.5,4691.1,4.53268861]
[1759784483115,0.4499,4691.5,4691.1,2.401]
[1759784483304,0.1084,4691.6,4691.1,2.401]
[1759784483634,0.5583,4691.6,4691.1,2.401]
[1759784484020,0.5583,4691.6,4691.1,4.53267857]
[1759784484404,0.1084,4691.6,4691.1,2.401]
[1759784484594,0.1084,4691.6,4691.2,0.4617]
[1759784484595,0.002,4691.6,4691.2,0.4617]
[1759784484789,0.002,4691.6,4691.4,0.1064]
[1759784485108,0.002,4691.6,4691.3,4.53256634]
[1759784485109,0.002,4691.6,4691.5,4.53251444]
[1759784485617,0.002,4691.6,4691.5,4.99421444]
[1759784489725,0.33552437,4691.6,4691.5,4.99421444]
[1759784491428,0.002,4692.6,4691.5,5.2627]
[1759784491635,0.002,4692.6,4692.5,2.1310602]
[1759784491807,0.002,4692.6,4692.5,4.5310602]
[1759784492814,0.002,4692.6,4692.5,2.4]
[1759784492815,0.4519,4692.6,4692.5,2.4]
[1759784493015,2.13123449,4692.2,4691.6,1.14717404]
[1759784493239,2.13130314,4692.0,4691.2,3.54717404]
[1759784493541,0.27812324,4692.2,4691.5,2.13150486]
[1759784493706,0.4428,4692.3,4691.7,2.13142054]
[1759784493907,0.19813868,4692.2,4691.7,2.403]
[1759784494442,0.19813868,4692.2,4691.7,2.404]
[1759784494443,0.4428,4692.1,4691.7,2.404]
[1759784494662,0.4428,4692.0,4691.7,2.404]
[1759784494866,0.4428,4691.9,4691.7,2.404]
[1759784495162,0.4428,4691.8,4691.5,0.1064]
[1759784495307,0.4428,4691.8,4691.6,2.404]
[1759784495939,2.13130013,4692.0,4691.6,2.404]
[1759784496134,0.4428,4691.8,4691.6,2.404]
[1759784496642,0.002,4691.8,4691.6,2.404]
[1759784496804,2.13147181,4691.6,4691.1,0.001]
[1759784497009,2.13156112,4691.4,4691.1,0.001]
[1759784497367,2.23796112,4691.4,4691.1,0.001]
[1759784497651,0.4288,4691.3,4691.1,0.001]
[1759784498352,0.4288,4691.2,4691.1,0.001]
[1759784500941,0.1064,4691.4,4691.1,0.001]
[1759784501138,0.5352,4691.4,4691.1,0.001]
[1759784505776,0.1064,4691.4,4691.1,0.001]
[1759784506072,0.002,4691.8,4691.2,2.8367]
[1759784506236,0.002,4691.8,4691.7,2.13142357]
[1759784506443,0.002,4691.8,4691.7,4.53542357]
[1759784506666,0.002,4691.8,4691.7,7.37212357]
[1759784507960,0.002,4691.8,4691.7,7.45738714]
[1759784508474,0.002,4692.3,4691.7,7.45738714]
[1759784508475,0.002,4692.3,4692.2,2.13119645]
[1759784508798,0.002,4692.3,4692.2,4.53519645]
[1759784508961,0.002,4692.3,4692.2,4.97189645]
[1759784512282,0.002,4692.3,4692.2,7.37189645]
[1759784515027,0.01,4692.9,4692.7,2.13096937]
[1759784515194,0.01,4692.9,4692.7,6.93396937]
[1759784515523,0.01,4692.9,4692.7,7.37066937]
[1759784515825,0.01,4692.9,4692.7,7.47706937]
[1759784516185,0.01,4692.9,4692.8,2.4]
[1759784516418,0.002,4693.3,4693.2,2.13074235]
[1759784516716,0.002,4693.3,4693.2,4.53374235]
[1759784516888,0.002,4693.3,4693.2,4.64014235]
[1759784517296,0.002,4693.3,4693.2,5.07684235]
[1759784518202,0.002,4693.3,4693.2,2.23714235]
[1759784518407,0.002,4693.3,4693.2,4.64014235]
[1759784521814,0.002,4693.3,4693.2,7.47684235]
[1759784522329,0.002,4693.3,4693.2,7.04014235]
[1759784522532,0.002,4693.3,4693.2,7.47684235]
[1759784523693,0.002,4693.3,4693.2,7.04014235]
[1759784524830,0.002,4693.3,4693.2,4.63714235]
[1759784524994,0.4538,4693.3,4693.2,4.9094]
[1759784525195,0.4538,4693.3,4693.2,2.5064]
[1759784525427,0.4538,4693.3,4693.2,7.03914235]
[1759784527066,0.002,4693.3,4693.2,7.03914235]
[1759784530864,0.002,4693.3,4693.2,4.63714235]
[1759784531064,0.002,4693.3,4693.2,7.03914235]
[1759784532571,0.002,4693.3,4693.2,4.63714235]
[1759784532880,0.4538,4693.3,4693.2,7.03914235]
[1759784535285,0.4538,4693.3,4693.2,4.802]
[1759784536852,0.002,4693.3,4693.2,4.802]
[1759784537052,0.4538,4693.3,4693.2,4.802]
[1759784537283,0.4538,4693.3,4693.2,6.93274235]
[1759784537490,0.002,4693.3,4693.2,6.93274235]
[1759784540897,0.002,4693.3,4693.2,4.802]
[1759784541192,0.4538,4693.3,4693.2,4.802]
[1759784541790,0.4538,4693.3,4693.1,1.14728552]
[1759784541964,0.4518,4693.2,4693.1,2.402]
[1759784542364,0.4518,4693.2,4692.6,1.14728552]
[1759784542365,0.65015162,4693.2,4693.0,2.402]
[1759784542564,0.4518,4693.1,4693.0,2.402]
[1759784542966,0.4518,4693.1,4692.6,1.14728552]
[1759784543193,0.4518,4693.1,4692.0,2.4]
[1759784543194,0.65020204,4693.0,4692.4,1.14728552]
[1759784543393,0.002,4693.3,4692.2,2.402]
[1759784543394,0.65020204,4692.9,4692.2,2.402]
[1759784543601,2.32936455,4692.8,4692.2,2.402]
[1759784543771,2.78117597,4692.7,4692.1,2.402]
[1759784544117,0.44602026,4692.8,4692.1,2.402]
[1759784544118,2.78122321,4692.6,4692.1,2.402]
[1759784544396,2.58286171,4692.5,4692.1,2.402]
[1759784544598,0.4518,4692.4,4692.1,2.402]
[1759784544787,0.4518,4692.3,4692.1,2.402]
[1759784544988,0.4518,4692.2,4692.1,2.402]
[1759784545384,0.4518,4692.2,4691.8,0.001]
[1759784545593,2.13106171,4692.5,4691.9,2.402]
[1759784545893,2.57695007,4692.8,4691.9,2.402]
[1759784545894,0.4518,4692.1,4691.9,2.402]
[1759784546393,0.4518,4692.0,4691.9,2.402]
[1759784547919,0.4518,4692.3,4691.9,2.402]
[1759784548114,2.1310116,4692.7,4691.9,2.402]
[1759784548413,2.13087862,4692.9,4692.0,2.13128729]
[1759784548414,2.13091269,4692.9,4692.0,2.13128729]
[1759784548591,0.64978997,4692.8,4691.9,4.53332874]
[1759784548799,2.13100474,4692.7,4692.1,0.001]
[1759784549202,0.4518,4692.6,4692.1,0.001]
[1759784549389,2.58281889,4692.6,4692.1,0.001]
[1759784549583,2.13096811,4692.8,4692.1,0.001]
[1759784549813,0.42652477,4692.7,4692.1,0.001]
[1759784550012,2.55750525,4692.7,4692.1,0.001]
[1759784550218,2.13101573,4692.6,4692.1,0.001]
[1759784550404,2.58281573,4692.6,4692.1,0.001]
[1759784550602,2.13101573,4692.6,4692.1,0.001]
[1759784550804,0.4518,4692.5,4692.1,0.001]
[1759784551218,2.66321812,4692.6,4692.1,0.001]
[1759784551219,0.4518,4692.4,4692.1,0.001]
[1759784552126,0.4518,4692.3,4692.1,0.001]
[1759784552289,0.1064,4692.5,4692.1,0.001]
[1759784554128,0.1064,4693.4,4693.0,2.13080015]
[1759784554423,0.1064,4693.4,4693.1,2.59638078]
[1759784554790,0.1064,4693.4,4693.1,2.13078078]
[1759784554990,0.1064,4693.4,4693.2,0.4656]
[1759784555192,2.13248067,4693.8,4693.0,2.5084]
[1759784555193,0.1064,4693.7,4693.0,2.5084]
[1759784555464,0.1064,4693.7,4693.2,2.59634235]
[1759784555666,0.1064,4693.7,4693.2,0.4656]
[1759784555825,0.1064,4693.7,4693.2,2.59634235]
[1759784556025,0.002,4693.8,4693.2,2.59634235]
[1759784556947,0.002,4693.8,4693.2,4.99634235]
[1759784557326,0.002,4693.8,4693.2,6.14362787]
[1759784557657,0.002,4693.8,4693.2,8.54562787]
[1759784557961,0.002,4693.8,4693.7,2.13051537]
[1759784558259,0.01,4693.9,4693.8,4.53046998]
[1759784558618,0.01,4693.9,4693.8,4.99946998]
[1759784559259,0.01,4695.9,4694.8,2.13001618]
[1759784559441,0.4454,4695.9,4694.8,4.53201618]
[1759784559645,0.01,4695.9,4694.8,4.53201618]
[1759784559849,0.4354,4695.8,4694.8,4.53201618]
[1759784560053,2.56497916,4695.8,4694.8,4.53201618]
[1759784560254,0.4354,4695.8,4694.8,4.53201618]
[1759784560425,0.4354,4695.8,4694.8,5.00101618]
[1759784560626,0.01,4695.9,4694.8,4.53201618]
[1759784560947,0.4454,4694.9,4694.7,2.402]
[1759784561150,0.01,4694.9,4694.7,2.402]
[1759784561352,0.4354,4694.8,4694.7,2.402]
[1759784561949,0.01,4694.9,4694.7,2.402]
[1759784564170,0.4354,4694.8,4694.7,2.402]
[1759784564463,0.4354,4694.8,4693.8,1.61298608]
[1759784564464,0.01,4694.9,4693.8,1.61298608]
[1759784564641,0.01,4694.9,4694.4,2.13018521]
[1759784564970,0.01,4694.9,4694.5,4.5311509]
[1759784565349,2.13006873,4694.7,4693.6,1.14398608]
[1759784565537,2.13006873,4694.7,4693.9,2.1303858]
[1759784565538,0.4354,4694.6,4693.9,2.1303858]
[1759784565865,0.4354,4694.6,4693.7,2.401]
[1759784565866,0.6336,4694.5,4693.7,2.401]
[1759784566037,2.60065085,4694.6,4693.7,2.401]
[1759784566038,0.1064,4694.0,4693.7,2.401]
[1759784566241,0.1064,4694.3,4693.7,2.9764]
[1759784566443,0.1064,4694.3,4693.7,2.5074]
[1759784566953,0.1064,4694.3,4693.7,4.63791074]
[1759784567975,0.1064,4694.3,4693.7,2.5074]
[1759784568274,0.1064,4694.3,4693.7,4.63791465]
[1759784568464,0.1064,4694.3,4693.7,2.5074]
[1759784568771,0.1064,4694.3,4693.7,4.63790692]
[1759784569656,0.1064,4694.3,4693.7,2.5074]
[1759784569865,0.1064,4694.3,4693.7,4.63791427]
[1759784570172,0.1064,4694.3,4693.8,2.13046651]
[1759784570784,0.1064,4694.3,4693.7,4.63791362]
[1759784571884,0.1064,4694.3,4693.8,2.13046608]
[1759784572257,0.1064,4694.3,4693.8,2.59946608]
[1759784572776,0.1064,4694.3,4693.7,4.6378758]
[1759784574359,0.1064,4694.3,4693.8,2.13042922]
[1759784574763,0.1064,4694.3,4693.8,2.59942922]
[1759784575995,0.1064,4694.3,4693.9,2.59941863]
[1759784576199,0.1064,4694.3,4693.7,2.5074]
[1759784576366,0.1064,4694.3,4693.1,2.13176064]
[1759784576367,0.4354,4694.2,4693.1,0.001]
[1759784576567,0.1064,4693.7,4693.1,0.001]
[1759784576790,2.13056076,4693.6,4693.1,0.001]
[1759784576960,2.56596076,4693.6,4693.1,0.001]
[1759784577153,0.4354,4693.5,4693.1,0.001]
[1759784577573,2.56601854,4693.5,4693.1,0.001]
[1759784577790,0.4354,4693.4,4693.1,0.001]
[1759784578507,0.4354,4693.3,4693.1,0.001]
[1759784579487,2.13057061,4693.6,4693.1,0.001]
[1759784579673,0.4354,4693.2,4693.1,0.001]
[1759784580006,2.13057061,4693.6,4693.1,0.001]
[1759784580308,2.67365188,4693.7,4693.1,0.001]
[1759784580508,2.23692238,4693.7,4693.1,0.001]
[1759784580706,0.4354,4693.6,4693.1,0.001]
[1759784581310,2.56596174,4693.6,4693.1,0.001]
[1759784581492,0.1064,4693.7,4693.1,0.001]
[1759784581739,0.1064,4693.4,4693.1,0.001]
[1759784581997,2.13074235,4693.2,4693.1,0.001]
[1759784582501,0.4354,4693.2,4693.1,0.001]
[1759784582701,0.26723314,4693.3,4693.1,0.001]
[1759784582900,0.4354,4693.2,4693.1,0.001]
[1759784583101,2.13070001,4693.3,4693.1,0.001]
[1759784583303,0.4678,4693.2,4693.1,0.001]
[1759784583809,2.59854235,4693.2,4693.1,0.001]
[1759784584613,3.42972003,4693.2,4693.1,0.001]
[1759784584979,6.39740173,4693.2,4693.1,0.001]
[1759784586723,5.92960173,4693.2,4693.1,0.001]
[1759784587012,6.39740173,4693.2,4693.1,0.001]
[1759784587231,6.19982405,4693.2,4693.1,0.001]
[1759784587792,5.73202405,4693.2,4693.1,0.001]
[1759784588219,6.19982405,4693.2,4693.1,0.001]
[1759784590320,8.79718452,4693.2,4693.1,0.001]
[1759784592204,8.79704889,4693.2,4693.1,0.001]
[1759784598516,2.13096937,4692.7,4692.6,1e-08]
[1759784598723,7.76279421,4692.7,4692.6,1e-08]
[1759784598925,5.82959421,4692.7,4692.6,1e-08]
[1759784599125,7.76279421,4692.7,4692.6,1e-08]
[1759784599447,5.36179421,4692.7,4692.6,1e-08]
[1759784599649,2.76456937,4692.7,4692.6,0.44660001]
[1759784599856,5.16556937,4692.7,4692.6,0.44660001]
[1759784600349,5.27196937,4692.7,4692.6,0.44660001]
[1759784601944,6.01225464,4692.7,4692.6,1e-08]
[1759784602879,6.01225464,4692.7,4692.6,0.44660001]
[1759784603048,6.01225464,4692.7,4692.6,1e-08]
[1759784603982,2.87096937,4692.7,4692.6,1e-08]
[1759784604176,2.87096937,4692.7,4692.6,0.44660001]
[1759784604177,5.27196937,4692.7,4692.6,0.44660001]
[1759784604982,5.27196937,4692.7,4692.6,1e-08]
[1759784605176,5.46966671,4692.7,4692.6,1e-08]
[1759784605478,5.46966671,4692.7,4692.6,0.44660001]
[1759784605684,5.4696667,4692.7,4692.6,0.44660001]
[1759784606841,6.22972171,4692.7,4692.6,0.44660001]
[1759784607047,6.22972171,4692.7,4692.6,1e-08]
[1759784607379,6.22990321,4692.7,4692.6,1e-08]
[1759784607582,6.22990278,4692.7,4692.6,1e-08]
[1759784610654,6.69770278,4692.7,4692.6,1e-08]
[1759784611667,9.09770278,4692.7,4692.6,1e-08]
[1759784617805,9.09802191,4692.7,4692.6,1e-08]
[1759784621179,9.10002191,4692.7,4692.6,1e-08]
[1759784623900,9.55664122,4692.7,4692.6,1e-08]
[1759784624517,9.55664122,4692.7,4692.2,0.001]
[1759784624518,2.76475103,4692.3,4692.2,0.001]
[1759784624717,7.09123646,4692.3,4692.2,0.001]
[1759784624916,9.95083646,4692.3,4692.2,0.001]
[1759784629613,9.49323646,4692.3,4692.2,0.001]
[1759784633219,9.95083646,4692.3,4692.2,0.001]
[1759784638524,9.49323646,4692.3,4692.2,0.001]
[1759784638843,9.95083646,4692.3,4692.2,0.001]
[1759784640013,9.49323646,4692.3,4692.2,0.001]
[1759784641050,13.78323646,4692.3,4692.2,0.001]
[1759784642619,14.24083646,4692.3,4692.2,0.001]
[1759784643150,13.78323646,4692.3,4692.2,0.001]
[1759784644553,9.49323646,4692.3,4692.2,0.001]
[1759784648825,9.29503893,4692.3,4692.2,0.001]
[1759784649156,9.49308822,4692.3,4692.2,0.001]
[1759784654949,9.94991409,4692.3,4692.2,0.001]
[1759784655861,14.23991409,4692.3,4692.2,0.001]
[1759784656728,14.23991409,4692.3,4691.8,0.001]
[1759784656729,2.76493272,4691.9,4691.8,0.001]
[1759784656947,5.47038201,4691.9,4691.8,0.001]
[1759784657233,5.47038201,4691.9,4691.6,0.001]
[1759784657234,2.76502357,4691.7,4691.6,1e-08]
[1759784657438,2.76515987,4691.4,4691.3,0.001]
[1759784657731,2.76515987,4691.4,4690.3,0.001]
[1759784657732,5.16520531,4691.3,4690.3,0.001]
[1759784658053,3.0336,4690.9,4690.3,0.001]
[1759784658248,5.63264929,4690.9,4690.3,0.001]
[1759784658458,9.34059671,4690.9,4690.3,0.001]
[1759784658667,9.34059671,4690.9,4690.3,0.4324]
[1759784662996,9.34036062,4690.9,4690.3,0.4324]
[1759784663489,9.76373381,4690.9,4690.3,0.4324]
[1759784663982,9.76373381,4690.9,4690.4,0.4314]
[1759784667396,9.87013381,4690.9,4690.4,0.4314]
[1759784667700,9.86994739,4690.9,4690.4,0.4314]
[1759784668167,9.86992574,4690.9,4690.4,0.4314]
[1759784673099,9.86992574,4690.9,4690.3,0.4474]
[1759784673402,7.46892574,4690.9,4690.5,0.4464]
[1759784673705,9.87092574,4690.9,4690.3,0.001]
[1759784674401,10.30502574,4690.9,4690.3,0.001]
[1759784674807,9.87092574,4690.9,4690.3,0.001]
[1759784675723,11.14992574,4690.9,4690.3,0.001]
[1759784675924,9.87092574,4690.9,4690.3,0.001]
[1759784676630,9.87092574,4690.9,4690.3,0.4559]
[1759784677006,7.46892574,4690.9,4690.8,0.4559]
[1759784677206,8.29476539,4690.9,4690.8,0.4559]
[1759784677701,5.89476539,4690.9,4690.8,0.4559]
[1759784681531,5.89490216,4690.9,4690.8,0.4559]
[1759784684259,5.89490216,4690.9,4690.8,0.001]
[1759784684461,7.16326654,4690.9,4690.8,0.001]
[1759784685324,6.96552464,4690.9,4690.8,0.001]
[1759784685520,7.16345503,4690.9,4690.8,0.001]
[1759784685725,9.91304877,4690.9,4690.8,0.001]
[1759784686236,5.16547797,4690.7,4690.3,0.001]
[1759784686437,14.70077391,4690.7,4690.3,0.001]
[1759784686637,15.16627391,4690.7,4690.3,0.001]
[1759784686821,15.16639199,4690.7,4690.3,0.001]
[1759784687436,15.25173105,4690.7,4690.3,0.001]
[1759784691455,15.25177525,4690.7,4690.3,0.001]
[1759784695521,15.25169032,4690.7,4690.3,0.001]
[1759784695864,15.35809032,4690.7,4690.3,0.001]
[1759784696166,14.90186521,4690.7,4690.3,0.001]
[1759784702870,14.43636521,4690.7,4690.3,0.001]
[1759784703359,14.89156521,4690.7,4690.3,0.001]
[1759784704846,15.34795953,4690.7,4690.3,0.001]
[1759784705143,16.62695953,4690.7,4690.3,0.001]
[1759784705345,15.34795953,4690.7,4690.3,0.001]
[1759784706976,2.76561432,4690.4,4690.3,0.001]
[1759784707269,14.28595474,4690.4,4690.3,0.001]
[1759784707659,14.37129708,4690.4,4690.3,0.001]
[1759784711674,7.51661007,4690.4,4690.3,0.4621]
[1759784711861,7.87207991,4690.4,4690.3,0.4621]
[1759784712671,7.56761432,4690.4,4690.3,0.4621]
[1759784712853,7.76591023,4690.4,4690.3,0.4621]
[1759784715154,8.22356798,4690.4,4690.3,0.4621]
[1759784716874,8.22356798,4690.4,4690.3,0.001]
[1759784717045,9.51871301,4690.4,4690.3,0.4621]
[1759784718278,7.11671301,4690.4,4690.3,0.4621]
[1759784718445,9.51871301,4690.4,4690.3,0.4621]
[1759784719652,9.51871301,4690.4,4690.3,0.001]
[1759784720050,7.11671301,4690.4,4690.3,0.001]
[1759784720369,9.51871301,4690.4,4690.3,0.001]
[1759784721383,10.05925317,4690.4,4690.3,0.001]
[1759784721750,9.60405317,4690.4,4690.3,0.001]
[1759784722686,9.71045317,4690.4,4690.3,0.001]
[1759784725585,2.76570524,4690.2,4690.1,1e-08]
[1759784725811,12.67634591,4690.2,4690.1,1e-08]
[1759784726083,5.8216589,4690.2,4690.1,1e-08]
[1759784726288,8.30900652,4690.2,4690.1,1e-08]
[1759784728359,12.76169353,4690.2,4690.1,1e-08]
[1759784728592,14.88592238,4690.2,4690.1,1e-08]
[1759784732200,15.34112238,4690.2,4690.1,1e-08]
[1759784734001,10.43323537,4690.2,4690.1,1e-08]
[1759784734625,10.43423537,4690.2,4690.1,0.44940001]
[1759784734826,10.34888775,4690.2,4690.1,0.44940001]
[1759784735694,10.45528775,4690.2,4690.1,0.44940001]
[1759784736822,10.45528775,4690.2,4690.1,1e-08]
[1759784737328,8.05228775,4690.2,4690.1,1e-08]
[1759784737523,10.45528775,4690.2,4690.1,1e-08]
[1759784738538,10.25699184,4690.2,4690.1,1e-08]
[1759784739340,10.45575885,4690.2,4690.1,1e-08]
[1759784739836,10.25699184,4690.2,4690.1,1e-08]
[1759784740048,10.25699184,4690.2,4689.0,0.4646]
[1759784740337,3.31630008,4690.3,4688.3,2.13292761]
[1759784740338,2.1326054,4689.1,4688.3,2.13292761]
[1759784741239,2.13257082,4689.2,4688.1,2.13305598]
[1759784741444,4.53561319,4689.1,4688.1,2.13305598]
[1759784741614,0.19885723,4689.0,4688.3,2.13293765]
[1759784742144,0.19885723,4689.0,4688.4,0.4646]
[1759784742639,2.413,4688.9,4688.4,0.4646]
[1759784742846,2.413,4688.9,4688.4,0.4446]
[1759784742847,0.19885723,4688.8,4688.4,0.4446]
[1759784744441,0.01,4688.9,4688.4,0.4446]